[Event "*** Titled Tuesday Blitz"]
[Site "Chess.com"]
[Date "2020.10.20"]
[Round "11"]
[White "sopo-tereladze"]
[Black "Fusikk"]
[Result "0-1"]
[WhiteElo "2330"]
[BlackElo "2535"]
[TimeControl "180+1"]
[EndTime "12:09:46 PDT"]
[Termination "Fusikk won on time"]

1. d4 {[%clk 0:03:00.9]} 1... d5 {[%clk 0:02:58.3]} 2. Nf3 {[%clk 0:03:01.2]}
2... Nf6 {[%clk 0:02:58]} 3. Bf4 {[%clk 0:03:01.5]} 3... e6 {[%clk 0:02:56.7]}
4. e3 {[%clk 0:03:01.8]} 4... Bd6 {[%clk 0:02:57.4]} 5. Bd3 {[%clk 0:03:01.2]}
5... c5 {[%clk 0:02:56.6]} 6. c3 {[%clk 0:03:00.2]} 6... Bxf4 {[%clk 0:02:52.7]}
7. exf4 {[%clk 0:03:01.1]} 7... b6 {[%clk 0:02:53.3]} 8. O-O {[%clk 0:02:59.1]}
8... O-O {[%clk 0:02:46.4]} 9. Re1 {[%clk 0:02:57.3]} 9... Ba6 {[%clk 0:02:41]}
10. Bc2 {[%clk 0:02:54.1]} 10... g6 {[%clk 0:02:35.1]} 11. Nbd2 {[%clk
0:02:51.7]} 11... Nc6 {[%clk 0:02:31.4]} 12. Ne5 {[%clk 0:02:50.2]} 12... Rc8
{[%clk 0:02:27.3]} 13. Ndf3 {[%clk 0:02:47.4]} 13... Nd7 {[%clk 0:02:11.4]} 14.
Qd2 {[%clk 0:02:25.7]} 14... cxd4 {[%clk 0:02:07.7]} 15. Nxd4 {[%clk 0:02:23.3]}
15... Ndxe5 {[%clk 0:02:03.3]} 16. fxe5 {[%clk 0:02:21.7]} 16... Nxd4 {[%clk
0:02:03]} 17. Qxd4 {[%clk 0:02:16.4]} 17... Qe7 {[%clk 0:01:57.9]} 18. Qe3
{[%clk 0:02:13.7]} 18... Rfd8 {[%clk 0:01:50.5]} 19. Rad1 {[%clk 0:02:13.8]}
19... Bc4 {[%clk 0:01:36.8]} 20. Bb1 {[%clk 0:02:06.4]} 20... Qh4 {[%clk
0:01:31.9]} 21. Rd4 {[%clk 0:02:03.5]} 21... Qe7 {[%clk 0:01:25.2]} 22. Red1
{[%clk 0:01:58.4]} 22... Ba6 {[%clk 0:01:24.4]} 23. Qh6 {[%clk 0:01:52.2]} 23...
Qf8 {[%clk 0:01:23.1]} 24. Qg5 {[%clk 0:01:51.5]} 24... Rc4 {[%clk 0:01:20.2]}
25. Rxc4 {[%clk 0:01:49.4]} 25... Bxc4 {[%clk 0:01:21.1]} 26. Rd4 {[%clk
0:01:49.2]} 26... Rc8 {[%clk 0:01:14]} 27. h4 {[%clk 0:01:41.6]} 27... Be2
{[%clk 0:00:38.7]} 28. h5 {[%clk 0:01:35]} 28... Rc4 {[%clk 0:00:31.3]} 29. h6
{[%clk 0:01:24.1]} 29... Rxd4 {[%clk 0:00:24.9]} 30. cxd4 {[%clk 0:01:23.6]}
30... Bb5 {[%clk 0:00:19.4]} 31. Bc2 {[%clk 0:01:17.1]} 31... f6 {[%clk
0:00:15.3]} 32. exf6 {[%clk 0:01:13.6]} 32... Kf7 {[%clk 0:00:15.7]} 33. Qf4
{[%clk 0:00:43.7]} 33... Qd8 {[%clk 0:00:13.1]} 34. a4 {[%clk 0:00:22]} 34...
Be8 {[%clk 0:00:12.3]} 35. Bxg6+ {[%clk 0:00:16.9]} 35... hxg6 {[%clk
0:00:11.9]} 36. h7 {[%clk 0:00:16.6]} 36... Bxa4 {[%clk 0:00:09.3]} 37. Qh6
{[%clk 0:00:12.4]} 37... Qh8 {[%clk 0:00:08.8]} 38. g4 {[%clk 0:00:12.8]} 38...
g5 {[%clk 0:00:04.7]} 39. Kg2 {[%clk 0:00:08.5]} 39... Bc2 {[%clk 0:00:03.9]}
40. Kg3 {[%clk 0:00:08]} 40... Qxh7 {[%clk 0:00:04.2]} 41. Qxg5 {[%clk
0:00:07.2]} 41... Qd3+ {[%clk 0:00:04.2]} 42. f3 {[%clk 0:00:06.4]} 42... Qg6
{[%clk 0:00:05.1]} 43. Qe5 {[%clk 0:00:05.8]} 43... Qxf6 {[%clk 0:00:05.6]} 44.
Qc7+ {[%clk 0:00:06.7]} 44... Qe7 {[%clk 0:00:05.8]} 45. Qf4+ {[%clk 0:00:07]}
45... Kg7 {[%clk 0:00:05.7]} 46. Qe5+ {[%clk 0:00:05.4]} 46... Kg8 {[%clk
0:00:06]} 47. Qb8+ {[%clk 0:00:04.5]} 47... Kh7 {[%clk 0:00:05.8]} 48. Qe5
{[%clk 0:00:04.5]} 48... Bg6 {[%clk 0:00:06.7]} 49. f4 {[%clk 0:00:03.6]} 49...
Qf7 {[%clk 0:00:05.7]} 50. Qd6 {[%clk 0:00:03.1]} 50... Qe8 {[%clk 0:00:05.5]}
51. Qe5 {[%clk 0:00:02.9]} 51... Qc8 {[%clk 0:00:05.5]} 52. Qd6 {[%clk
0:00:02.1]} 52... Qc2 {[%clk 0:00:05.3]} 53. Kh4 {[%clk 0:00:03]} 53... Qh2+
{[%clk 0:00:04.7]} 54. Kg5 {[%clk 0:00:03.2]} 54... Qh6+ {[%clk 0:00:05.2]} 55.
Kf6 {[%clk 0:00:01.5]} 55... Be4+ {[%clk 0:00:06.1]} 56. Ke7 {[%clk 0:00:01.2]}
56... Qg7+ {[%clk 0:00:06.6]} 57. Kxe6 {[%clk 0:00:01.6]} 57... Qg6+ {[%clk
0:00:06.7]} 58. Kd7 {[%clk 0:00:02.5]} 58... Qxd6+ {[%clk 0:00:07.3]} 59. Kxd6
{[%clk 0:00:03.4]} 59... Kg6 {[%clk 0:00:07.9]} 60. Ke5 {[%clk 0:00:02.5]} 60...
Bf3 {[%clk 0:00:07.9]} 0-1

[Event "*** Titled Tuesday Blitz"]
[Site "Chess.com"]
[Date "2020.10.20"]
[Round "11"]
[White "Sadykov_Ramil"]
[Black "MarkkuH"]
[Result "1-0"]
[WhiteElo "2552"]
[BlackElo "2393"]
[TimeControl "180+1"]
[EndTime "12:09:47 PDT"]
[Termination "Sadykov_Ramil won on time"]

1. d4 {[%clk 0:03:00.9]} 1... Nf6 {[%clk 0:02:59.5]} 2. Bf4 {[%clk 0:03:00.8]}
2... g6 {[%clk 0:02:59.4]} 3. Nc3 {[%clk 0:02:56.8]} 3... Bg7 {[%clk 0:02:59.1]}
4. e4 {[%clk 0:02:54.1]} 4... d6 {[%clk 0:02:59.5]} 5. Qd2 {[%clk 0:02:52.7]}
5... O-O {[%clk 0:02:58]} 6. O-O-O {[%clk 0:02:49.9]} 6... Re8 {[%clk
0:02:50.2]} 7. e5 {[%clk 0:02:25.2]} 7... Nfd7 {[%clk 0:02:25.6]} 8. Nf3 {[%clk
0:02:20.3]} 8... Nf8 {[%clk 0:02:14.3]} 9. h3 {[%clk 0:02:09.1]} 9... Nc6 {[%clk
0:01:56.8]} 10. Qe3 {[%clk 0:01:45.1]} 10... a6 {[%clk 0:01:30]} 11. g4 {[%clk
0:01:37.8]} 11... b5 {[%clk 0:01:18.7]} 12. Bg2 {[%clk 0:01:36.3]} 12... Bb7
{[%clk 0:01:15.9]} 13. Rhe1 {[%clk 0:01:18.3]} 13... Na5 {[%clk 0:01:08]} 14. d5
{[%clk 0:01:10.1]} 14... Nc4 {[%clk 0:01:03.9]} 15. Qd3 {[%clk 0:01:07]} 15...
dxe5 {[%clk 0:00:56]} 16. Nxe5 {[%clk 0:01:06.9]} 16... Nxe5 {[%clk 0:00:52.3]}
17. Bxe5 {[%clk 0:01:07.8]} 17... Bxe5 {[%clk 0:00:50.1]} 18. Rxe5 {[%clk
0:01:08.7]} 18... Nd7 {[%clk 0:00:49.8]} 19. Re3 {[%clk 0:01:06.6]} 19... Nf6
{[%clk 0:00:40.5]} 20. a3 {[%clk 0:00:55.6]} 20... Qd6 {[%clk 0:00:39.5]} 21.
Qd4 {[%clk 0:00:53.8]} 21... Rad8 {[%clk 0:00:30.9]} 22. f4 {[%clk 0:00:47.8]}
22... Ba8 {[%clk 0:00:23.8]} 23. f5 {[%clk 0:00:37.8]} 23... Qh2 {[%clk
0:00:17.4]} 24. Rd2 {[%clk 0:00:34.4]} 24... Qg1+ {[%clk 0:00:15.7]} 25. Re1
{[%clk 0:00:29.2]} 25... Qxd4 {[%clk 0:00:14.6]} 26. Rxd4 {[%clk 0:00:30.1]}
26... c6 {[%clk 0:00:13.1]} 27. Red1 {[%clk 0:00:18.7]} 27... Nxd5 {[%clk
0:00:13.1]} 28. Nxd5 {[%clk 0:00:18.7]} 28... cxd5 {[%clk 0:00:12.8]} 29. Bxd5
{[%clk 0:00:19.1]} 29... Bxd5 {[%clk 0:00:12.8]} 30. Rxd5 {[%clk 0:00:20]} 30...
Rxd5 {[%clk 0:00:10.6]} 31. Rxd5 {[%clk 0:00:20.9]} 31... gxf5 {[%clk
0:00:10.8]} 32. gxf5 {[%clk 0:00:20.4]} 32... e6 {[%clk 0:00:11.2]} 33. Rd6
{[%clk 0:00:16.7]} 33... exf5 {[%clk 0:00:11.3]} 34. Rxa6 {[%clk 0:00:16.8]}
34... Re3 {[%clk 0:00:10.3]} 35. Rb6 {[%clk 0:00:14.1]} 35... f4 {[%clk
0:00:09.9]} 36. Rxb5 {[%clk 0:00:13.6]} 36... Rxh3 {[%clk 0:00:10.3]} 37. Rf5
{[%clk 0:00:10.8]} 37... f3 {[%clk 0:00:10.6]} 38. Kd2 {[%clk 0:00:10.6]} 38...
Rh2+ {[%clk 0:00:09.5]} 39. Kd3 {[%clk 0:00:09.9]} 39... f2 {[%clk 0:00:08.5]}
40. a4 {[%clk 0:00:08.1]} 40... Kg7 {[%clk 0:00:08.8]} 41. a5 {[%clk 0:00:07.6]}
41... Kg6 {[%clk 0:00:09.2]} 42. Rf4 {[%clk 0:00:07.9]} 42... Rh3+ {[%clk
0:00:08.4]} 43. Ke2 {[%clk 0:00:07.6]} 43... Rh2 {[%clk 0:00:07.9]} 44. Rxf2
{[%clk 0:00:07.6]} 44... Rh5 {[%clk 0:00:08.3]} 45. b4 {[%clk 0:00:07]} 45...
Rb5 {[%clk 0:00:07.7]} 46. c3 {[%clk 0:00:06.9]} 46... f5 {[%clk 0:00:07.5]} 47.
Kd3 {[%clk 0:00:06.2]} 47... Kf6 {[%clk 0:00:07]} 48. a6 {[%clk 0:00:06.3]}
48... Rb8 {[%clk 0:00:07.3]} 49. a7 {[%clk 0:00:05.1]} 49... Rd8+ {[%clk
0:00:07.4]} 50. Kc4 {[%clk 0:00:03.6]} 50... Rc8+ {[%clk 0:00:07.9]} 51. Kd5
{[%clk 0:00:03.2]} 51... Rd8+ {[%clk 0:00:07.9]} 52. Kc6 {[%clk 0:00:03]} 52...
Ra8 {[%clk 0:00:08.8]} 53. Kb7 {[%clk 0:00:03.1]} 53... Re8 {[%clk 0:00:08.4]}
54. a8=Q {[%clk 0:00:03.4]} 54... Rxa8 {[%clk 0:00:09]} 55. Kxa8 {[%clk
0:00:04.3]} 55... Ke5 {[%clk 0:00:09.8]} 56. b5 {[%clk 0:00:04.8]} 56... Ke4
{[%clk 0:00:10.3]} 57. b6 {[%clk 0:00:05.3]} 57... f4 {[%clk 0:00:11.2]} 58. b7
{[%clk 0:00:05.6]} 58... Ke3 {[%clk 0:00:12.1]} 59. Rf1 {[%clk 0:00:06]} 59...
f3 {[%clk 0:00:11.3]} 60. b8=Q {[%clk 0:00:06.2]} 60... Ke2 {[%clk 0:00:12.2]}
61. Rxf3 {[%clk 0:00:06.4]} 61... Kxf3 {[%clk 0:00:12]} 62. Qh2 {[%clk
0:00:07.3]} 62... Ke4 {[%clk 0:00:12.1]} 63. Qxh7+ {[%clk 0:00:07.7]} 63... Kd5
{[%clk 0:00:12]} 64. Qc7 {[%clk 0:00:08.6]} 64... Ke6 {[%clk 0:00:11.7]} 65. c4
{[%clk 0:00:09.5]} 1-0

[Event "*** Titled Tuesday Blitz"]
[Site "Chess.com"]
[Date "2020.10.20"]
[Round "11"]
[White "TomiLen"]
[Black "GalperinPlaton"]
[Result "1/2-1/2"]
[WhiteElo "2650"]
[BlackElo "2836"]
[TimeControl "180+1"]
[EndTime "12:09:50 PDT"]
[Termination "Game drawn by agreement"]

1. c4 {[%clk 0:03:00.9]} 1... e5 {[%clk 0:02:59]} 2. g3 {[%clk 0:03:00]} 2... h5
{[%clk 0:02:55.9]} 3. Nc3 {[%clk 0:02:56.5]} 3... h4 {[%clk 0:02:55.5]} 4. Bg2
{[%clk 0:02:56.6]} 4... Nc6 {[%clk 0:02:49.7]} 5. d3 {[%clk 0:02:56]} 5... d6
{[%clk 0:02:48.2]} 6. Rb1 {[%clk 0:02:49]} 6... h3 {[%clk 0:02:47.9]} 7. Bf3
{[%clk 0:02:45.4]} 7... a5 {[%clk 0:02:44.4]} 8. e3 {[%clk 0:02:44.8]} 8... Be6
{[%clk 0:02:40.7]} 9. a3 {[%clk 0:02:43.3]} 9... Nf6 {[%clk 0:02:35.6]} 10. Nd5
{[%clk 0:02:41.6]} 10... g6 {[%clk 0:02:15.7]} 11. Ne2 {[%clk 0:02:41]} 11...
Bh6 {[%clk 0:02:13.9]} 12. Nec3 {[%clk 0:02:39.1]} 12... Rb8 {[%clk 0:02:11.2]}
13. b4 {[%clk 0:02:34.4]} 13... axb4 {[%clk 0:02:12.1]} 14. axb4 {[%clk
0:02:34.9]} 14... Kf8 {[%clk 0:02:10.6]} 15. b5 {[%clk 0:02:33.7]} 15... Bxd5
{[%clk 0:02:08.4]} 16. Nxd5 {[%clk 0:02:30.6]} 16... Nxd5 {[%clk 0:02:08.1]} 17.
Bxd5 {[%clk 0:02:28.7]} 17... Ne7 {[%clk 0:02:08.6]} 18. Bf3 {[%clk 0:02:28.3]}
18... Kg7 {[%clk 0:02:06.7]} 19. Bb2 {[%clk 0:02:25.8]} 19... Bg5 {[%clk
0:02:04.7]} 20. O-O {[%clk 0:02:24.7]} 20... f5 {[%clk 0:01:54]} 21. Ra1 {[%clk
0:02:22.2]} 21... Bf6 {[%clk 0:01:50]} 22. Ra7 {[%clk 0:02:20.1]} 22... Qc8
{[%clk 0:01:43.8]} 23. Qa4 {[%clk 0:02:17.8]} 23... g5 {[%clk 0:01:35.2]} 24.
Bh1 {[%clk 0:02:13.7]} 24... f4 {[%clk 0:01:33.4]} 25. Qd1 {[%clk 0:02:08.3]}
25... g4 {[%clk 0:01:27.4]} 26. exf4 {[%clk 0:01:59.8]} 26... exf4 {[%clk
0:01:28.3]} 27. Bxf6+ {[%clk 0:01:58.8]} 27... Kxf6 {[%clk 0:01:28.5]} 28. gxf4
{[%clk 0:01:47.9]} 28... Qf5 {[%clk 0:01:26.1]} 29. Qa1+ {[%clk 0:01:42.1]}
29... Kf7 {[%clk 0:01:24.2]} 30. Qd4 {[%clk 0:01:35.5]} 30... Qf6 {[%clk
0:01:12.5]} 31. Qxf6+ {[%clk 0:01:04.7]} 31... Kxf6 {[%clk 0:01:13.4]} 32. Re1
{[%clk 0:01:04.1]} 32... Ng6 {[%clk 0:01:08]} 33. Re4 {[%clk 0:01:00.4]} 33...
Ra8 {[%clk 0:01:05]} 34. Rxa8 {[%clk 0:00:50.2]} 34... Rxa8 {[%clk 0:01:05.9]}
35. Re1 {[%clk 0:00:50.3]} 35... Nxf4 {[%clk 0:00:57.3]} 36. Bxb7 {[%clk
0:00:50.2]} 36... Ra2 {[%clk 0:00:56]} 37. Be4 {[%clk 0:00:46.8]} 37... Ne2+
{[%clk 0:00:55.5]} 38. Kf1 {[%clk 0:00:45.9]} 38... Nd4 {[%clk 0:00:56.4]} 39.
Rb1 {[%clk 0:00:43.3]} 39... Ke5 {[%clk 0:00:52.8]} 40. Ke1 {[%clk 0:00:41.6]}
40... Kf4 {[%clk 0:00:52.6]} 41. b6 {[%clk 0:00:40]} 41... cxb6 {[%clk
0:00:49.6]} 42. Rxb6 {[%clk 0:00:40.9]} 42... Ra1+ {[%clk 0:00:45.8]} 43. Kd2
{[%clk 0:00:40.6]} 43... Rf1 {[%clk 0:00:46.7]} 44. Rxd6 {[%clk 0:00:35.2]}
44... Rxf2+ {[%clk 0:00:46.9]} 45. Kc3 {[%clk 0:00:35.3]} 45... Ne2+ {[%clk
0:00:47.4]} 46. Kb4 {[%clk 0:00:35.1]} 46... Rxh2 {[%clk 0:00:42.3]} 47. c5
{[%clk 0:00:35.5]} 47... Ng3 {[%clk 0:00:35.7]} 48. Bd5 {[%clk 0:00:31.5]} 48...
Rb2+ {[%clk 0:00:34.5]} 49. Kc3 {[%clk 0:00:31.3]} 49... Rb1 {[%clk 0:00:32.7]}
50. Kc2 {[%clk 0:00:31.4]} 50... Rb5 {[%clk 0:00:32.7]} 51. c6 {[%clk
0:00:29.2]} 51... Rxd5 {[%clk 0:00:18.4]} 52. Rxd5 {[%clk 0:00:27.1]} 52... h2
{[%clk 0:00:19.3]} 53. Rd4+ {[%clk 0:00:25.2]} 53... Ke3 {[%clk 0:00:08]} 54. c7
{[%clk 0:00:24.4]} 54... h1=Q {[%clk 0:00:04.8]} 55. c8=Q {[%clk 0:00:24.6]}
55... Kxd4 {[%clk 0:00:04.7]} 56. Qxg4+ {[%clk 0:00:24.5]} 56... Kc5 {[%clk
0:00:03]} 57. Qxg3 {[%clk 0:00:24.3]} 57... Qa1 {[%clk 0:00:03.5]} 58. Qc7+
{[%clk 0:00:23.5]} 58... Kd5 {[%clk 0:00:03.6]} 59. Qd7+ {[%clk 0:00:22.9]}
59... Kc5 {[%clk 0:00:04]} 60. Qc7+ {[%clk 0:00:22.2]} 60... Kd5 {[%clk
0:00:04.6]} 61. Qc4+ {[%clk 0:00:21.8]} 61... Kd6 {[%clk 0:00:04.8]} 62. Qb4+
{[%clk 0:00:21.3]} 62... Kd5 {[%clk 0:00:04.6]} 63. Qb7+ {[%clk 0:00:20.4]}
63... Kd6 {[%clk 0:00:04.8]} 64. Qb4+ {[%clk 0:00:19.9]} 64... Kd5 {[%clk
0:00:05.1]} 65. Qb3+ {[%clk 0:00:20]} 65... Kd6 {[%clk 0:00:04.4]} 66. Qc3
{[%clk 0:00:20.2]} 66... Qxc3+ {[%clk 0:00:03.9]} 67. Kxc3 {[%clk 0:00:20.6]}
67... Kc5 {[%clk 0:00:04.8]} 68. d4+ {[%clk 0:00:21]} 68... Kd5 {[%clk
0:00:05.7]} 69. Kd3 {[%clk 0:00:21.4]} 69... Kd6 {[%clk 0:00:04.2]} 1/2-1/2

[Event "*** Titled Tuesday Blitz"]
[Site "Chess.com"]
[Date "2020.10.20"]
[Round "11"]
[White "Fortitudine"]
[Black "TrenerChos"]
[Result "1-0"]
[WhiteElo "2281"]
[BlackElo "2161"]
[TimeControl "180+1"]
[EndTime "12:09:50 PDT"]
[Termination "Fortitudine won by checkmate"]

1. c4 {[%clk 0:03:00.9]} 1... Nf6 {[%clk 0:02:59]} 2. g3 {[%clk 0:02:58.6]} 2...
e6 {[%clk 0:02:58.6]} 3. Bg2 {[%clk 0:02:57.5]} 3... d5 {[%clk 0:02:59.5]} 4.
Nf3 {[%clk 0:02:57.3]} 4... Be7 {[%clk 0:02:58.7]} 5. O-O {[%clk 0:02:57.3]}
5... O-O {[%clk 0:02:58]} 6. b3 {[%clk 0:02:57.6]} 6... c6 {[%clk 0:02:56.8]} 7.
Bb2 {[%clk 0:02:57.5]} 7... Nbd7 {[%clk 0:02:56.6]} 8. d4 {[%clk 0:02:57.5]}
8... b6 {[%clk 0:02:56.3]} 9. e3 {[%clk 0:02:57.1]} 9... Ba6 {[%clk 0:02:55.3]}
10. Qe2 {[%clk 0:02:54.5]} 10... c5 {[%clk 0:02:43.5]} 11. Nc3 {[%clk
0:02:42.6]} 11... cxd4 {[%clk 0:02:41.3]} 12. exd4 {[%clk 0:02:41.3]} 12... Rc8
{[%clk 0:02:39.3]} 13. Nb5 {[%clk 0:02:36.8]} 13... Bxb5 {[%clk 0:02:30.8]} 14.
cxb5 {[%clk 0:02:37.7]} 14... Ne4 {[%clk 0:02:27.6]} 15. Rfc1 {[%clk 0:02:29.4]}
15... Ndf6 {[%clk 0:02:24.1]} 16. Ne5 {[%clk 0:02:26.8]} 16... Nd6 {[%clk
0:02:00.2]} 17. Nc6 {[%clk 0:02:16.9]} 17... Qd7 {[%clk 0:01:59.2]} 18. Ba3
{[%clk 0:01:49.5]} 18... Nf5 {[%clk 0:01:48.4]} 19. Bb2 {[%clk 0:01:29.9]} 19...
Bd6 {[%clk 0:01:28.8]} 20. Rc2 {[%clk 0:01:00.2]} 20... Rc7 {[%clk 0:01:17.9]}
21. Rac1 {[%clk 0:00:59.4]} 21... Rfc8 {[%clk 0:01:16]} 22. a4 {[%clk
0:00:48.2]} 22... Ne7 {[%clk 0:01:13.4]} 23. Ne5 {[%clk 0:00:40.7]} 23... Bxe5
{[%clk 0:01:11.9]} 24. dxe5 {[%clk 0:00:39]} 24... Ne8 {[%clk 0:00:58.8]} 25.
Ba3 {[%clk 0:00:35.1]} 25... Ng6 {[%clk 0:00:54.1]} 26. f4 {[%clk 0:00:32]}
26... Ne7 {[%clk 0:00:45.5]} 27. Qd2 {[%clk 0:00:24.7]} 27... Rxc2 {[%clk
0:00:31.6]} 28. Rxc2 {[%clk 0:00:24]} 28... Nf5 {[%clk 0:00:26.4]} 29. Qc1
{[%clk 0:00:14.3]} 29... Rxc2 {[%clk 0:00:19.3]} 30. Qxc2 {[%clk 0:00:15.2]}
30... d4 {[%clk 0:00:18.9]} 31. Qc6 {[%clk 0:00:13.8]} 31... Qxc6 {[%clk
0:00:17.9]} 32. bxc6 {[%clk 0:00:13]} 32... d3 {[%clk 0:00:16.1]} 33. Kf2 {[%clk
0:00:12.2]} 33... Nc7 {[%clk 0:00:13.6]} 34. Bd6 {[%clk 0:00:12.3]} 34... d2
{[%clk 0:00:09.9]} 35. Ke2 {[%clk 0:00:12.2]} 35... d1=Q+ {[%clk 0:00:09.2]} 36.
Kxd1 {[%clk 0:00:12.2]} 36... Nd5 {[%clk 0:00:08]} 37. Ke2 {[%clk 0:00:12.3]}
37... Nfe7 {[%clk 0:00:04.1]} 38. Bxd5 {[%clk 0:00:11.5]} 38... Nxd5 {[%clk
0:00:03.6]} 39. c7 {[%clk 0:00:12]} 39... Nxc7 {[%clk 0:00:04.4]} 40. Bxc7
{[%clk 0:00:12.9]} 40... Kf8 {[%clk 0:00:04.7]} 41. Bb8 {[%clk 0:00:13.5]} 41...
Ke8 {[%clk 0:00:05.6]} 42. Bxa7 {[%clk 0:00:14.1]} 42... Kd7 {[%clk 0:00:06.5]}
43. Bxb6 {[%clk 0:00:14.6]} 43... Kc6 {[%clk 0:00:07.4]} 44. Be3 {[%clk
0:00:15.3]} 44... Kd5 {[%clk 0:00:08.2]} 45. Kd3 {[%clk 0:00:16]} 45... Kc6
{[%clk 0:00:07.2]} 46. b4 {[%clk 0:00:16.3]} 46... Kb7 {[%clk 0:00:08.1]} 47. b5
{[%clk 0:00:16.9]} 47... g6 {[%clk 0:00:08.7]} 48. Kc4 {[%clk 0:00:17.4]} 48...
h5 {[%clk 0:00:09.6]} 49. a5 {[%clk 0:00:18]} 49... Kc7 {[%clk 0:00:09.6]} 50.
Kc5 {[%clk 0:00:18.5]} 50... Kb7 {[%clk 0:00:10.5]} 51. Kd6 {[%clk 0:00:19.1]}
51... h4 {[%clk 0:00:10.6]} 52. Ke7 {[%clk 0:00:19.4]} 52... Ka8 {[%clk
0:00:10.7]} 53. Kxf7 {[%clk 0:00:19.3]} 53... Kb7 {[%clk 0:00:11.6]} 54. Kxe6
{[%clk 0:00:19]} 54... Ka8 {[%clk 0:00:12.5]} 55. gxh4 {[%clk 0:00:19.2]} 55...
Kb7 {[%clk 0:00:13.4]} 56. Kf6 {[%clk 0:00:19.6]} 56... Ka8 {[%clk 0:00:14.2]}
57. Kxg6 {[%clk 0:00:20.2]} 57... Kb7 {[%clk 0:00:13.9]} 58. Bd2 {[%clk
0:00:20.8]} 58... Ka8 {[%clk 0:00:14.8]} 59. Kf6 {[%clk 0:00:21.3]} 59... Kb7
{[%clk 0:00:15.7]} 60. Ke6 {[%clk 0:00:22]} 60... Ka8 {[%clk 0:00:15.2]} 61. h5
{[%clk 0:00:22.7]} 61... Kb7 {[%clk 0:00:14.8]} 62. Bb4 {[%clk 0:00:23.3]} 62...
Ka8 {[%clk 0:00:15.2]} 63. h6 {[%clk 0:00:24]} 63... Kb7 {[%clk 0:00:15.8]} 64.
h7 {[%clk 0:00:24.3]} 64... Ka8 {[%clk 0:00:16.4]} 65. Kd6 {[%clk 0:00:23.7]}
65... Ka7 {[%clk 0:00:17]} 66. Kc6 {[%clk 0:00:23.2]} 66... Ka8 {[%clk
0:00:14.1]} 67. h8=Q+ {[%clk 0:00:23.2]} 67... Ka7 {[%clk 0:00:15]} 68. Bc5#
{[%clk 0:00:23.6]} 1-0